Cogmind - Beta 15 @@@ ROGUE MODE // 2025.06.19 @ 18:29:22 Player: Jammed Result: Destroyed by D-53 Grenadier with Mini Grenade Launcher Performance ------------- Evolutions (0) 0 Regions Visited (2) 400 Robots Destroyed (35) 175 Value Destroyed (617) 617 Prototype IDs (0) 0 Alien Tech Used (0) 0 Bonus (-11) -11 TOTAL SCORE: 1181 Bonus ------- Friendly Fire -11 Cogmind --------- Core Integrity 0/250 Matter 141/300 Energy 234/250 System Corruption 0% Temperature Hot (290) Movement Core (450) Ox8 Location -10/Mines Parts ------- > --- POWER (1) -------- Ion Engine > --- PROPULSION (2) --- (None) > --- UTILITY (2) ------ Large Storage Unit > --- WEAPON (2) ------- Small Laser > --- INVENTORY (15) --- Cooling System Cooling System Cooling System Cooling System Seismic Detector Hardened Light Armor Plating Hardened Light Armor Plating Hardened Light Armor Plating Hacking Suite Hacking Suite Rocket Launcher Rocket Launcher Datajack Mining Laser Peak State ------------ > --- POWER ------------ Ion Engine > --- PROPULSION ------- Light Treads Light Treads > --- UTILITY ---------- Large Storage Unit Hardened Light Armor Plating > --- WEAPON ----------- Small Laser Rocket Launcher > --- INVENTORY -------- Cooling System Cooling System Cooling System Cooling System Seismic Detector Hardened Light Armor Plating Hardened Light Armor Plating Hardened Light Armor Plating Hacking Suite Hacking Suite Medium Laser Rocket Launcher Datajack Mining Laser [Rating: 11] Favorites ----------- Power Ion Engine Engine Ion Engine Propulsion Light Treads Treads Light Treads Leg Aluminum Leg Utility Hardened Light Armor Plating Device Seismic Detector Storage Large Storage Unit Protection Hardened Light Armor Plating Weapon Small Laser Energy Gun Small Laser Ballistic Gun Light Assault Rifle Launcher Rocket Launcher Special Weapon Mining Laser Build | -11 -10 -10 ------- Run | Yrd Mat Min Slots Evolved . | . . . Power . | . . . Propulsion . | . . . Utility . | . . . Weapon . | . . . Parts Attached 14 | 2 10 2 Power 1 | . 1 . Engine 1 | . 1 . Core . | . . . Reactor . | . . . Propulsion 2 | . 2 . Treads 2 | . 2 . Leg . | . . . Wheel . | . . . Hover . | . . . Flight . | . . . Utility 5 | 1 3 1 Device 1 | 1 . . Storage 2 | . 2 . Processor . | . . . Hackware . | . . . Protection 2 | . 1 1 Artifact . | . . . Weapon 6 | 1 4 1 Energy Gun 2 | 1 1 . Energy Cannon . | . . . Ballistic Gun 1 | . 1 . Ballistic Cannon . | . . . Launcher 2 | . 1 1 Special Weapon 1 | . 1 . Impact Weapon . | . . . Slashing Weapon . | . . . Piercing Weapon . | . . . Special Melee Weapon . | . . . Unidentified Prototypes . | . . . Parts Lost 5 | . 1 4 Power 1 | . 1 . Propulsion 2 | . . 2 Utility 1 | . . 1 Weapon 1 | . . 1 Highest Loss Streak 4 | . 1 4 To Critical Strikes . | . . . Average Backups 10 | 6 9 14 Power . | 1 . . Propulsion . | 4 . . Utility 7 | . 5 10 Weapon 2 | 1 2 3 Tool/Special . | . . . Unused Backups 20 | 5 6 9 Power 3 | 1 2 . Propulsion 5 | 2 3 . Utility 10 | 1 1 8 Weapon 1 | 1 . . Tool/Special 1 | . . 1 Average Slot Usage (%) 99 | . 99 99 Engine 13 | . 13 14 Treads 21 | . 17 27 Leg 6 | . 10 . Device 1 | . 2 . Storage 14 | . 14 14 Protection 12 | . 10 13 Energy Gun 27 | . 27 27 Peak Build Rating 11 | 7 10 11 Average Rating 9 | 6 8 10 On Entrance 7 | 6 7 10 Naked Turns . | . . . Heaviest Build 35 | 12 33 35 Greatest Support 40 | 20 40 40 Greatest Overweight (x) 1 | . 1 . Average Overweight (x) . | . . . Largest Inventory Capacity 15 | 8 15 15 Average Capacity 11 | 8 10 15 Most Carried 15 | 7 15 14 Average Carried 10 | 6 9 14 Final Capacity 15 | 8 15 15 Final Carried 14 | 7 14 14 Class Distribution -------------------- 100% | Mutant Dominant Class ---------------- Mutant | -10/Materials Mutant | -10/Mines Resources | -11 -10 -10 ----------- Run | Yrd Mat Min Matter Collected 411 | 220 158 33 Remotely . | . . . Salvage Created 1053 | 170 808 75 Parts 70 | 13 52 5 Haulers Intercepted 2 | . 2 . Recyclers Shooed . | . . . Parts Field Recycled . | . . . Retrieved Matter . | . . . Parts Self-Destructed . | . . . Prevented . | . . . Kills | -11 -10 -10 ------- Run | Yrd Mat Min Combat Hostiles Destroyed 34 | . 19 15 Guns 20 | . 17 3 AOE 14 | . 2 12 Classes Destroyed 11 | 2 6 3 Worker 1 | . 1 . Builder 1 | . . 1 Tunneler 5 | 5 . . Hauler 2 | . 2 . Recycler 2 | 1 1 . Operator 2 | . 2 . Watcher 2 | . 2 . Swarmer 9 | . 9 . Grunt 10 | . 10 . Demolisher 1 | . . 1 Assembled 14 | . . 14 Best Kill Streak 14 | 4 3 14 Combat Bots Only 14 | . 3 14 Max Kills in Single Turn 3 | 1 2 3 Gunslinging 1 | . 1 . Exploded 3 | . 2 3 Melee . | . . . Uniques/NPCs Destroyed . | . . . Combat | -11 -10 -10 -------- Run | Yrd Mat Min Hostile Shots Fired 102 | . 55 47 Missed 30 | . 21 9 Hits 72 | . 34 38 Melee 2 | . . 2 Projectile 70 | . 34 36 AOE 15 | . . 15 Damage Taken 1392 | . 423 969 Core 258 | . 37 221 Absorbed by Shields . | . . . Regen/Repaired (Parts) 71 | . 71 . Core Remaining (%) 100 | 100 . . Volleys Fired 105 | 14 65 26 Largest 2 | 2 2 2 Hottest 100 | 90 100 90 Shots Fired 193 | 28 125 40 Gun 176 | 28 120 28 Cannon . | . . . Launcher 14 | . 2 12 Special 3 | . 3 . Kinetic 8 | . 8 . Thermal 171 | 28 115 28 Explosive 14 | . 2 12 Electromagnetic . | . . . Robot Hit Streak 18 | 7 18 3 Robot Miss Streak 5 | 3 3 5 Penetration Max . | . . . Secondary Targets 5 | . 3 2 Max Gunslinging Chain 1 | . 1 1 Shots Hit Robots 116 | 17 83 16 Core Hits 83 | 7 45 31 Critical Kills . | . . . Critical Parts Destroyed . | . . . Critical Strikes 4 | 1 2 1 Burn 4 | 1 2 1 Melee Attacks . | . . . Impact . | . . . Slashing . | . . . Piercing . | . . . Sneak Attacks . | . . . Combat Hostiles . | . . . Follow-up Attacks . | . . . Damage Inflicted 2321 | 201 1151 969 Guns 1361 | 201 993 167 Cannons . | . . . Explosions 960 | . 158 802 Melee . | . . . Ramming . | . . . Kinetic 61 | . 61 . Thermal 1300 | 201 932 167 Explosive 960 | . 158 802 Electromagnetic . | . . . Impact . | . . . Slashing . | . . . Piercing . | . . . Highest Corruption . | . . . Average Corruption . | . . . Corruption Purged . | . . . Corruption Blocked . | . . . Overload Shots . | . . . Overflow Damage 10 | . . 10 Projectiles . | . . . Explosions 10 | . . 10 Melee . | . . . Knockbacks . | . . . Impact . | . . . Kinetic . | . . . Secondary . | . . . Self-Inflicted Damage 96 | . 55 41 Shots 3 | . 2 1 Rammed . | . . . Targets Rammed . | . . . Kicked . | . . . Crushed . | . . . Highest Temperature 364 | 300 300 364 Average Temperature 114 | 119 87 216 Received Heat Transfer 216 | . 156 60 Effects 5 | . 1 4 Shutdowns 1 | . . 1 Energy Bleed 3 | . 1 2 Matter Decay 1 | . . 1 Siege Activations . | . . . Martial Activations . | . . . Shielding Activations . | . . . Robots Disrupted . | . . . Combat Hostiles . | . . . Robots Corrupted . | . . . Combat Hostiles . | . . . Parts Fried . | . . . Impact Corruptions . | . . . Robots Melted . | . . . Combat Hostiles . | . . . Parts Melted 5 | 1 4 . Heat Transferred 3716 | 619 2589 508 Parts Sabotaged . | . . . Parts Stolen . | . . . Parts Stripped . | . . . Power Chain Reactions . | . . . Alert | -11 -10 -10 ------- Run | Yrd Mat Min Maximum Alert Level 1 | . 1 . Low Security (%) 98 | 100 97 100 Level 1 1 | . 2 . Level 2 . | . . . Level 3 . | . . . Level 4 . | . . . Level 5 . | . . . High Security . | . . . Max Security . | . . . Peak Influence 227 | 10 227 69 Initial 36 | . . 36 Average 66 | 3 110 5 Influence Increases 753 | 30 644 79 Destroy 0b10 Robot/C 400 | . 380 20 Destroy 0b10 Robot/NC 80 | 30 45 5 Destroy Leader 78 | . 78 . Successful Hack 33 | . 33 . Select Force Hacks 30 | . 30 . Destroy Structure 72 | . 18 54 Lose Combat Pursuer 60 | . 60 . Influence Decreases 753 | 30 549 174 Entered New Map 59 | . . 59 Time Decay 649 | 30 529 90 Lost Part 35 | . 10 25 Lost Ally 10 | . 10 . Squads Dispatched 4 | . 4 . Investigation 2 | . 2 . Extermination . | . . . Reinforcement 2 | . 2 . Assault . | . . . Garrison . | . . . Intercept . | . . . Searches Triggered . | . . . Construction Impeded . | . . . Haulers Reinforced . | . . . Active Scanning Responses . | . . . Cargo Convoy Interrupts . | . . . Stealth | -11 -10 -10 --------- Run | Yrd Mat Min Distress Signals 1 | . 1 . Communications Jammed . | . . . Distress Signals . | . . . Times Spotted 47 | . 30 17 Peak Tracking Total 7 | . 4 7 Tactical Retreats 4 | . 4 . Traps | -11 -10 -10 ------- Run | Yrd Mat Min Traps Triggered 1 | . 1 . Indirectly . | . . . Trap Hack Attempts . | . . . Triggered . | . . . Disarmed . | . . . Reprogrammed . | . . . Reused . | . . . Traps Extracted . | . . . Installed . | . . . Triggered . | . . . Machines | -11 -10 -10 ---------- Run | Yrd Mat Min Machines Disabled . | . . . Max in Single Turn . | . . . Machines Repaired . | . . . Machines Dismantled . | . . . Machines Sabotaged . | . . . Overloaded Fab Kills . | . . . Hacking | -11 -10 -10 --------- Run | Yrd Mat Min Machines Accessed 9 | . 9 . Terminals 6 | . 6 . Fabricators . | . . . Repair Stations 1 | . 1 . Recycling Units 2 | . 2 . Scanalyzers . | . . . Garrison Access . | . . . Total Hacks 22 | . 22 . Successful 18 | . 18 . Failed 4 | . 4 . Catastrophic . | . . . Database Lockouts . | . . . Manual 21 | . 21 . Terminals 18 | . 18 . Fabricators . | . . . Repair Stations 2 | . 2 . Recycling Units 2 | . 2 . Scanalyzers . | . . . Garrison Access . | . . . Terminal Hacks 6 | . 6 . Part Schematic 1 | . 1 . Robot Schematic 1 | . 1 . Robot Analysis 4 | . 4 . Fabricator Hacks . | . . . Repair Station Hacks 2 | . 2 . Scan Component 1 | . 1 . Repair 1 | . 1 . Recycling Unit Hacks . | . . . Scanalyzer . | . . . Garrison Access Hacks . | . . . Unauthorized Hacks 10 | . 10 . Terminals 8 | . 8 . Assimilate 1 | . 1 . Botnet 2 | . 2 . Skim 5 | . 5 . Fabricators . | . . . Repair Stations . | . . . Recycling Units 2 | . 2 . Reject 1 | . 1 . Tunnel 1 | . 1 . Scanalyzers . | . . . Garrison Access . | . . . Data Cores Recovered . | . . . Used . | . . . Hacking Detections 6 | . 6 . Full Trace Events . | . . . Feedback Events . | . . . Feedback Blocked . | . . . Robot Schematics Acquired 1 | . 1 . Robots Built . | . . . Authchips . | . . . Time . | . . . Total Robot Build Rating . | . . . Part Schematics Acquired 1 | . 1 . Parts Built . | . . . Authchips . | . . . Time . | . . . Total Part Build Rating . | . . . Parts Repaired 1 | . 1 . Time 32 | . 32 . Parts Recycled . | . . . Recycled Matter . | . . . Retrieved Matter . | . . . Retrieved Components . | . . . Parts Scanalyzed . | . . . Part Schematics Acquired . | . . . Parts Damaged . | . . . Bothacking | -11 -10 -10 ------------ Run | Yrd Mat Min Used RIF Installer . | . . . Robots Hacked . | . . . Non-combat . | . . . Combat . | . . . Robot Hacks Applied . | . . . Relay Couplers Released . | . . . Fabnet Peak Effective % . | . . . Robots Rewired . | . . . Allies Hacked . | . . . Hacks Repelled . | . . . Allies | -11 -10 -10 -------- Run | Yrd Mat Min Total Allies 1 | . 1 . Largest Group 1 | . 1 . Highest-Rated Group 10 | . 10 . Highest-Rated Ally 10 | . 10 . Total Orders 2 | . 2 . STAY 1 | . 1 . FOLLOW 1 | . 1 . Ally Attacks . | . . . Total Damage . | . . . Kills . | . . . Allies Corrupted . | . . . Allies Melted . | . . . Intel | -11 -10 -10 ------- Run | Yrd Mat Min Active Infowar (turns) 433 | 96 337 . Seismic 433 | 96 337 . Robot Analysis Total 4 | . 4 . Derelict Logs Recovered . | . . . Drone Launches . | . . . Drone Recoveries . | . . . Exploration | -11 -10 -10 ------------- Run | Yrd Mat Min Turns Passed 3030 | 113 1760 1157 Spaces Moved 998 | 31 869 98 Core . | . . . Treads 633 | . 535 98 Legs 365 | 31 334 . Wheels . | . . . Hover . | . . . Flight . | . . . Fastest Speed 120 | 120 120 160 Average Speed 148 | 120 148 160 Slowest Speed 240 | 120 240 160 Overloaded Moves . | . . . Propulsion Burnouts . | . . . Robots Hopped . | . . . Potential Cave-ins . | . . . Cave-ins Triggered . | . . . Exploration Rate (%) 38 | 3 92 20 Regions Visited 2 Branch Regions 1 Pre-discovered Areas 3 | . 3 . Known Exits Taken . | . . . Unknown Exits Taken 2 | 1 1 . Scrap Searched . | . . . Spaces Dug 8 | . 3 5 Terrain Destroyed 118 | . 24 94 Melee . | . . . Projectile 3 | . 3 . AOE 115 | . 21 94 Terrain Rammed . | . . . Walls Destroyed . | . . . Machines Disabled . | . . . Actions | -11 -10 -10 --------- Run | Yrd Mat Min Total 2345 | 77 1211 1057 Wait 1198 | 30 238 930 Move 996 | 30 868 98 Hop . | . . . Pick Up 16 | 1 15 . Fast Attach 3 | 1 2 . Attach . | . . . Detach . | . . . Swap 17 | 1 13 3 Drop 10 | . 10 . Fire 105 | 14 65 26 Melee . | . . . Ram . | . . . Kick . | . . . Crush . | . . . Escape Stasis . | . . . Rewire . | . . . Trap . | . . . Miscellaneous . | . . . Route ------- -11/Scrapyard -10/Materials (discovered 5 exits: *Mat x3 / [*Min] / Sub) -10/Mines (discovered 3 exits: Mat x2 / [*Exi]) History --------- Turn | Location | Event 12 | -11/Scrapyard | Discovered new exit (range 3) 114 | -11/Scrapyard | Entered Materials 182 | -10/Materials | Discovered new exit (range 16) 313 | -10/Materials | Build established: Mutant 341 | -10/Materials | Discovered new exit (range 3) 660 | -10/Materials | Discovered new exit (range 6) 757 | -10/Materials | Learned location of Storage (-8) 809 | -10/Materials | Discovered new exit (range 8) 896 | -10/Materials | Learned Storage emergency access door positions 948 | -10/Materials | Learned location of 1 exit from Storage 991 | -10/Materials | Loaded intel: 5 trap records 1025 | -10/Materials | Learned location of 1 exit from Storage 1049 | -10/Materials | Learned 4 Recycling zone layouts 1130 | -10/Materials | Identified exit to Subcaves 1185 | -10/Materials | Learned location of Mines (-9) 1639 | -10/Materials | Repaired Hrd. Light Armor Plating 1874 | -10/Materials | Entered Mines 1875 | -10/Mines | Assembled infested the area 1875 | -10/Mines | Identified exit to Materials 1880 | -10/Mines | Assisted by a Guerilla fighting off Assembled 1954 | -10/Mines | Destroyed 14 combat bots 2963 | -10/Mines | Deemed a non-threat by the Exiles lab entrance 2964 | -10/Mines | Discovered new exit (range 5) 3014 | -10/Mines | Core integrity fell below 50% 3026 | -10/Mines | Core integrity fell below 20% 3031 | -10/Mines | Destroyed by D-53 Grenadier with Mini Grenade Launcher Last Messages --------------- 03010_ A derelict is hurriedly installing traps. 03012_ 3B-KVH(g): "Hehe, this'll put a wrench in their mining defense operations..." 03012_ 3B-KVH(g) slips into the shadows. 03017_ D-53 Grenadier destroyed. 03017_ Switching to secondary target: D-53 Grenadier. 03018_ The unstable cave ceiling collapses. 03018_ U-05 Engineer lays Concrete. 03019_ Lgt. Treads destroyed. 03019_ U-05 Engineer lays Concrete. 03023_ U-05 Engineer destroyed. 03023_ U-05 Engineer builds a Wall. 03024_ The unstable cave ceiling collapses. 03026_ Overheating: Energy bleed (-30). 03027_ U-05 Engineer builds a Wall. 03028_ The unstable cave ceiling collapses. 03029_ Hrd. Light Armor Plating destroyed. 03031_ K-01 Serf collects debris. 03031_ U-05 Engineer builds a Wall. 03031_ Med. Laser destroyed. Map ----- +----------------------------------------------------+ | ?????????????????????????????????????????????????? | | ?????????????????????????????????????????????##### | | ?????????????????????????????????????????????# | | ?????????????????????????????????????????????# | | ?????????????????????????????????????????????# | | ?????????????????????????????????????????????# | | ???????????????????????????????????????###???# "" | | ???????????????????????????????????????